fUST/lending_fUST_20260608
["ID","MTS","AMOUNT","RATE_DAILY","PERIOD"]
[424421574,1780866643000,-151.0,0.00019615,2]
[424421512,1780866643000,-500.0,0.00019452,2]
[424421513,1780866643000,-500.0,0.00019452,2]
[424421514,1780866643000,-500.0,0.00019452,2]
[424421510,1780866643000,-500.0,0.00019452,2]
[424421511,1780866643000,-941.03,0.00019452,2]
[424421515,1780866643000,-500.0,0.00019452,2]
[424421518,1780866643000,-1496.92,0.00019452,2]
[424421517,1780866643000,-500.0,0.00019452,2]
[424421516,1780866643000,-1825.58,0.00019452,2]
[424421521,1780866643000,-500.0,0.00019452,2]
[424421527,1780866643000,-2518.25,0.00019452,2]
[424421526,1780866643000,-763.79,0.00019452,2]
[424421525,1780866643000,-452.57391435,0.00019452,2]
[424421519,1780866643000,-4227.76,0.00019452,2]
[424421523,1780866643000,-961.04,0.00019452,2]
[424421522,1780866643000,-500.0,0.00019452,2]
[424421528,1780866643000,-4749.81,0.00019452,2]
[424421524,1780866643000,-8318.22,0.00019452,2]
[424421530,1780866643000,-535.95,0.00019452,2]
[424421540,1780866643000,-500.0,0.00019452,2]
[424421541,1780866643000,-500.0,0.00019452,2]
[424421543,1780866643000,-500.0,0.00019452,2]
[424421544,1780866643000,-500.0,0.00019452,2]
[424421542,1780866643000,-3230.56,0.00019452,2]
[424421537,1780866643000,-1052.7,0.00019452,2]
[424421529,1780866643000,-500.0,0.00019452,2]
[424421534,1780866643000,-500.0,0.00019452,2]
[424421531,1780866643000,-654.13,0.00019452,2]
[424421532,1780866643000,-5723.6,0.00019452,2]
[424421577,1780866643000,-646.077,0.00019726,2]
[424421556,1780866643000,-655.8,0.00019452,2]
[424421585,1780866643000,-500.0,0.00019726,2]
[424421619,1780866643000,-500.0,0.00019726,2]
[424421622,1780866643000,-658.94,0.00019726,2]
[424421621,1780866643000,-689.77,0.00019726,2]
[424421612,1780866643000,-500.0,0.00019726,2]
[424421620,1780866643000,-500.0,0.00019726,2]
[424421616,1780866643000,-500.0,0.00019726,2]
[424421614,1780866643000,-500.0,0.00019726,2]
[424421618,1780866643000,-1176.61,0.00019726,2]
[424421613,1780866643000,-803.36,0.00019726,2]
[424421617,1780866643000,-267.78469654,0.00019726,2]
[424421625,1780866643000,-736.28,0.00019726,2]
[424421624,1780866643000,-500.0,0.00019726,2]
[424421623,1780866643000,-1028.61,0.00019726,2]
[424421634,1780866643000,-500.0,0.00019726,2]
[424421629,1780866643000,-500.0,0.00019726,2]
[424421627,1780866643000,-556.62,0.00019726,2]
[424421631,1780866643000,-500.0,0.00019726,2]
[424421630,1780866643000,-622.07,0.00019726,2]
[424421635,1780866643000,-331.10457903,0.00019726,2]
[424421626,1780866643000,-500.0,0.00019726,2]
[424421628,1780866643000,-1287.44,0.00019726,2]
[424421632,1780866643000,-839.41,0.00019726,2]
[424421633,1780866643000,-381.78939988,0.00019726,2]
[424421636,1780866643000,-2238.28,0.00019726,2]
[424421638,1780866643000,-731.21,0.00019726,2]
[424421639,1780866643000,-500.0,0.00019726,2]
[424421641,1780866643000,-1785.42,0.00019726,2]
[424421640,1780866643000,-500.0,0.00019726,2]
[424421580,1780866643000,-500.0,0.00019726,2]
[424421611,1780866643000,-500.0,0.00019726,2]
[424421615,1780866643000,-500.0,0.00019726,2]
[424421637,1780866643000,-500.0,0.00019726,2]
[424421608,1780866643000,-500.0,0.00019726,2]
[424421610,1780866643000,-500.0,0.00019726,2]
[424421576,1780866643000,-614.9736,0.00019726,2]
[424421584,1780866643000,-1111.51,0.00019726,2]
[424421579,1780866643000,-546.63,0.00019726,2]
[424421575,1780866643000,-542.5339,0.00019726,2]
[424421581,1780866643000,-1656.07,0.00019726,2]
[424421582,1780866643000,-469.24881671,0.00019726,2]
[424421583,1780866643000,-500.0,0.00019726,2]
[424421593,1780866643000,-500.0,0.00019726,2]
[424421600,1780866643000,-500.0,0.00019726,2]
[424421598,1780866643000,-500.0,0.00019726,2]
[424421588,1780866643000,-500.0,0.00019726,2]
[424421597,1780866643000,-500.0,0.00019726,2]
[424421591,1780866643000,-500.995,0.00019726,2]
[424421599,1780866643000,-500.0,0.00019726,2]
[424421578,1780866643000,-500.0,0.00019726,2]
[424421642,1780866643000,-1507.94,0.00019726,2]
[424421607,1780866643000,-529.27,0.00019726,2]
[424421589,1780866643000,-500.0,0.00019726,2]
[424421606,1780866643000,-500.0,0.00019726,2]
[424421605,1780866643000,-786.66,0.00019726,2]
[424421602,1780866643000,-500.0,0.00019726,2]
[424421604,1780866643000,-500.0,0.00019726,2]
[424421603,1780866643000,-500.0,0.00019726,2]
[424421595,1780866643000,-500.0,0.00019726,2]
[424421592,1780866643000,-1054.9,0.00019726,2]
[424421594,1780866643000,-1537.32,0.00019726,2]
[424421586,1780866643000,-907.78,0.00019726,2]
[424421596,1780866643000,-661.75,0.00019726,2]
[424421601,1780866643000,-513.24,0.00019726,2]
[424421590,1780866643000,-1677.59,0.00019726,2]
[424421655,1780866644000,-500.0,0.00019726,2]
[424421657,1780866644000,-500.0,0.00019726,2]
[424421658,1780866644000,-993.68,0.00019726,2]
[424421665,1780866644000,-1815.78,0.00019726,2]
[424421661,1780866644000,-500.0,0.00019726,2]
[424421671,1780866644000,-500.0,0.00019726,2]
[424421662,1780866644000,-500.0,0.00019726,2]
[424421656,1780866644000,-548.3,0.00019726,2]
[424421664,1780866644000,-690.65,0.00019726,2]
[424421659,1780866644000,-500.0,0.00019726,2]
[424421651,1780866644000,-500.0,0.00019726,2]
[424421644,1780866644000,-500.0,0.00019726,2]
[424421652,1780866644000,-3579.0,0.00019726,2]
[424421654,1780866644000,-525.47,0.00019726,2]
[424421649,1780866644000,-500.0,0.00019726,2]
[424421660,1780866644000,-532.02691723,0.00019726,2]
[424421650,1780866644000,-960.6,0.00019726,2]
[424421645,1780866644000,-500.0,0.00019726,2]
[424421646,1780866644000,-940.65,0.00019726,2]
[424421643,1780866644000,-500.0,0.00019726,2]
[424421647,1780866644000,-500.0,0.00019726,2]
[424421648,1780866644000,-705.53,0.00019726,2]
[424421666,1780866644000,-598.47,0.00019726,2]
[424421653,1780866644000,-523.59,0.00019726,2]
[424421668,1780866644000,-545.22,0.00019726,2]
[424421680,1780866644000,-550.58,0.00019726,2]
[424421669,1780866644000,-500.0,0.00019726,2]
[424421690,1780866644000,-363.33448778,0.00019726,2]
[424421691,1780866644000,-715.75,0.00019726,2]
[424421694,1780866644000,-1114.37944696,0.00019726,2]
[424421689,1780866644000,-543.96,0.00019726,2]
[424421692,1780866644000,-556.55,0.00019726,2]
[424421693,1780866644000,-633.13,0.00019726,2]
[424421688,1780866644000,-1175.76,0.00019726,2]
[424421685,1780866644000,-2123.74,0.00019726,2]
[424421667,1780866644000,-1519.95,0.00019726,2]
[424421686,1780866644000,-500.0,0.00019726,2]
[424421684,1780866644000,-500.0,0.00019726,2]
[424421681,1780866644000,-615.78,0.00019726,2]
[424421687,1780866644000,-500.0,0.00019726,2]
[424421682,1780866644000,-500.0,0.00019726,2]
[424421663,1780866644000,-963.55,0.00019726,2]
[424421683,1780866644000,-1127.12,0.00019726,2]
[424421670,1780866644000,-630.47,0.00019726,2]
[424421674,1780866644000,-500.0,0.00019726,2]
[424421673,1780866644000,-500.0,0.00019726,2]
[424421672,1780866644000,-860.91,0.00019726,2]
[424421675,1780866644000,-500.0,0.00019726,2]
[424421677,1780866644000,-274.44903875,0.00019726,2]
[424421678,1780866644000,-225.55096125,0.00019726,2]
[424421679,1780866644000,-500.0,0.00019726,2]
[424421676,1780866644000,-770.59,0.00019726,2]
[424421698,1780866646000,-642.54055304,0.00019726,2]
[424421699,1780866646000,-500.0,0.00019726,2]
[424421700,1780866646000,-579.3,0.00019726,2]
[424421711,1780866646000,-764.3,0.00019726,2]
[424421709,1780866646000,-500.0,0.00019726,2]
[424421706,1780866646000,-500.0,0.00019726,2]
[424421701,1780866646000,-500.0,0.00019726,2]
[424421710,1780866646000,-500.0,0.00019726,2]
[424421708,1780866646000,-500.0,0.00019726,2]
[424421705,1780866646000,-951.21,0.00019726,2]
[424421703,1780866646000,-500.0,0.00019726,2]
[424421707,1780866646000,-500.0,0.00019726,2]
[424421704,1780866646000,-500.0,0.00019726,2]
[424421713,1780866646000,-2672.63980157,0.00019726,2]
[424421712,1780866646000,-1081.85,0.00019726,2]
[424421702,1780866646000,-954.65,0.00019726,2]
[424421726,1780867044000,503.88515136,0.00024986,120]
[424421725,1780867044000,503.88515136,0.00024986,120]
[424421724,1780867044000,503.88515136,0.00024986,120]
[424421723,1780867044000,503.88515136,0.00024986,120]
[424421727,1780867045000,503.88515136,0.00024986,120]
[424421728,1780867045000,503.88515136,0.00024986,120]
[424421729,1780867045000,503.88515136,0.00024986,120]
[424421732,1780867046000,503.88515136,0.00024986,120]
[424421731,1780867046000,503.88515136,0.00024986,120]
[424421730,1780867046000,503.88515136,0.00024986,120]
[424421735,1780867047000,503.88515136,0.00024986,120]
[424421734,1780867047000,503.88515136,0.00024986,120]
[424421733,1780867047000,503.88515136,0.00024986,120]
[424421737,1780867048000,503.88515136,0.00024986,120]
[424421736,1780867048000,503.88515136,0.00024986,120]
[424421754,1780867556000,-300.0,0.00012838,2]
[424421756,1780867556000,-500.0,0.00012839,2]
[424421755,1780867556000,-300.0,0.00012838,2]
[424421759,1780867556000,-500.0,0.00012839,2]
[424421760,1780867556000,-0.99790771,0.00012839,2]
[424421757,1780867556000,-500.0,0.00012839,2]
[424421758,1780867556000,-500.0,0.00012839,2]
[424421763,1780867644000,-1644.7248624,0.00012458,2]
[424421764,1780867646000,-955.48822381,0.00012458,2]
[424421765,1780867653000,-375.33797714,0.00012458,2]
[424421767,1780867745000,-463.74042984,0.00012458,2]
[424421768,1780867768000,-271.29767067,0.00012458,2]
[424421777,1780867832000,-1471.78569561,0.0001221,2]
[424421776,1780867832000,-1028.31405772,0.00012088,2]
[424421833,1780867838000,-500.0,0.00012209,2]
[424421854,1780867838000,-199.33609403,0.00012582,2]
[424421857,1780867838000,-500.0,0.00012582,2]
[424421863,1780867838000,-2426.6635634,0.00012839,2]
[424421852,1780867838000,-500.0,0.00012582,2]
[424421856,1780867838000,-500.0,0.00012582,2]
[424421848,1780867838000,-300.0,0.00012582,2]
[424421850,1780867838000,-300.0,0.00012582,2]
[424421842,1780867838000,-500.0,0.00012209,2]
[424421829,1780867838000,-500.0,0.00012209,2]
[424421831,1780867838000,-500.0,0.00012209,2]
[424421844,1780867838000,-2039.41529445,0.0001221,2]
[424421840,1780867838000,-410.84970916,0.00012209,2]
[424421837,1780867838000,-307.61562186,0.00012209,2]
[424421838,1780867838000,-500.0,0.00012209,2]
[424421827,1780867838000,-500.0,0.00012209,2]
[424421869,1780867838000,-3044.3950463,0.00015401,2]
[424421835,1780867838000,-500.0,0.00012209,2]
[424421865,1780867838000,-287.96191861,0.00013233,14]
[424421846,1780867838000,-5000.0,0.00012333,2]
[424421861,1780867838000,-278.1458652,0.00012582,2]
[424421867,1780867838000,-420.0,0.00013804,2]
[424421902,1780867838000,-151.0,0.00018889,2]
[424421900,1780867838000,-151.0,0.00018889,2]
[424421896,1780867838000,-151.0,0.00018889,2]
[424421886,1780867838000,-151.0,0.00018889,2]
[424421882,1780867838000,-229.99,0.00018671,2]
[424421884,1780867838000,-668.71772026,0.00018876,2]
[424421880,1780867838000,-159.068591,0.00018668,2]
[424421894,1780867838000,-151.0,0.00018889,2]
[424421898,1780867838000,-151.0,0.00018889,2]
[424421890,1780867838000,-151.0,0.00018889,2]
[424421892,1780867838000,-151.0,0.00018889,2]
[424421888,1780867838000,-151.0,0.00018889,2]
[424421877,1780867838000,-965.9645686,0.00017803,2]
[424421875,1780867838000,-355.40183243,0.00017803,2]
[424421871,1780867838000,-159.068591,0.0001689,2]
[424421873,1780867838000,-159.068591,0.00017779,2]
[424421879,1780867838000,-152.0,0.00018165,7]
[424421859,1780867838000,-500.0,0.00012582,2]
[424421979,1780867839000,-523.66,0.00019178,2]
[424421975,1780867839000,-500.0,0.00019178,2]
[424421977,1780867839000,-500.0,0.00019178,2]
[424421961,1780867839000,-500.0,0.00019178,2]
[424421963,1780867839000,-1319.44,0.00019178,2]
[424421971,1780867839000,-639.81,0.00019178,2]
[424421957,1780867839000,-500.0,0.00019178,2]
[424421965,1780867839000,-823.07,0.00019178,2]
[424421973,1780867839000,-617.34,0.00019178,2]
[424421981,1780867839000,-500.0,0.00019178,2]
[424421959,1780867839000,-500.0,0.00019178,2]
[424421992,1780867839000,-1329.96,0.00019178,2]
[424422000,1780867839000,-843.1,0.00019178,2]
[424421985,1780867839000,-500.0,0.00019178,2]
[424421996,1780867839000,-500.0,0.00019178,2]
[424421990,1780867839000,-500.0,0.00019178,2]
[424421983,1780867839000,-551.66,0.00019178,2]
[424421998,1780867839000,-500.0,0.00019178,2]
[424421988,1780867839000,-500.0,0.00019178,2]
[424421987,1780867839000,-604.32,0.00019178,2]
[424421955,1780867839000,-1029.53,0.00019178,2]
[424422002,1780867839000,-500.0,0.00019178,2]
[424422004,1780867839000,-500.0,0.00019178,2]
[424422006,1780867839000,-564.47,0.00019178,2]
[424422012,1780867839000,-500.0,0.00019178,2]
[424421994,1780867839000,-500.0,0.00019178,2]
[424421969,1780867839000,-500.0,0.00019178,2]
[424421935,1780867839000,-4029.96,0.00019177,5]
[424421953,1780867839000,-900.03,0.00019178,2]
[424422010,1780867839000,-500.0,0.00019178,2]
[424421904,1780867839000,-151.0,0.00018889,2]
[424421908,1780867839000,-151.0,0.00018889,2]
[424421914,1780867839000,-4047.84384678,0.00018935,2]
[424421910,1780867839000,-151.0,0.00018889,2]
[424421912,1780867839000,-151.0,0.00018889,2]
[424421916,1780867839000,-500.0,0.00018976,2]
[424421918,1780867839000,-500.0,0.00018976,2]
[424421906,1780867839000,-151.0,0.00018889,2]
[424421920,1780867839000,-501.10401355,0.00018977,2]
[424421924,1780867839000,-500.0,0.00018977,2]
[424421921,1780867839000,-500.0,0.00018977,2]
[424421967,1780867839000,-500.0,0.00019178,2]
[424421925,1780867839000,-84140.169961,0.00019,2]
[424421929,1780867839000,-500.0,0.00019035,2]
[424421940,1780867839000,-500.0,0.00019178,2]
[424421931,1780867839000,-264.99441175,0.00019177,2]
[424421944,1780867839000,-500.0,0.00019178,2]
[424421942,1780867839000,-500.0,0.00019178,2]
[424421938,1780867839000,-500.0,0.00019178,2]
[424421949,1780867839000,-544.31,0.00019178,2]
[424421933,1780867839000,-501.28827127,0.00019177,2]
[424421946,1780867839000,-500.0,0.00019178,2]
[424421936,1780867839000,-500.0,0.00019178,2]
[424421948,1780867839000,-500.0,0.00019178,2]
[424421951,1780867839000,-702.94,0.00019178,2]
[424421927,1780867839000,-500.0,0.00019035,2]
[424422014,1780867839000,-500.0,0.00019178,2]
[424422078,1780867839000,-500.0,0.00019178,2]
[424422016,1780867839000,-500.0,0.00019178,2]
[424422082,1780867839000,-500.0,0.00019178,2]
[424422086,1780867839000,-3131.62,0.00019178,2]
[424422089,1780867839000,-500.0,0.00019178,2]
[424422088,1780867839000,-728.47,0.00019178,2]
[424422093,1780867839000,-500.0,0.00019178,2]
[424422091,1780867839000,-500.0,0.00019178,2]
[424422097,1780867839000,-500.0,0.00019178,2]
[424422095,1780867839000,-978.31,0.00019178,2]
[424422099,1780867839000,-500.0,0.00019178,2]
[424422101,1780867839000,-500.0,0.00019178,2]
[424422105,1780867839000,-671.92,0.00019178,2]
[424422107,1780867839000,-840.52,0.00019178,2]
[424422084,1780867839000,-500.0,0.00019178,2]
[424422117,1780867839000,-674.27,0.00019178,2]
[424422113,1780867839000,-500.0,0.00019178,2]
[424422111,1780867839000,-904.86,0.00019178,2]
[424422122,1780867839000,-500.0,0.00019178,2]
[424422109,1780867839000,-500.0,0.00019178,2]
[424422124,1780867839000,-753.3,0.00019178,2]
[424422121,1780867839000,-869.47,0.00019178,2]
[424422115,1780867839000,-500.0,0.00019178,2]
[424422126,1780867839000,-500.0,0.00019178,2]
[424422128,1780867839000,-1033.19,0.00019178,2]
[424422132,1780867839000,-1673.45,0.00019178,2]
[424422130,1780867839000,-1588.81,0.00019178,2]
[424422008,1780867839000,-500.0,0.00019178,2]
[424422119,1780867839000,-599.62,0.00019178,2]
[424422080,1780867839000,-500.0,0.00019178,2]
[424422103,1780867839000,-500.0,0.00019178,2]
[424422076,1780867839000,-500.0,0.00019178,2]
[424422022,1780867839000,-553.99,0.00019178,2]
[424422024,1780867839000,-500.0,0.00019178,2]
[424422134,1780867839000,-207.05508057,0.00019178,2]
[424422020,1780867839000,-500.0,0.00019178,2]
[424422018,1780867839000,-500.0,0.00019178,2]
[424422028,1780867839000,-603.54,0.00019178,2]
[424422032,1780867839000,-894.71,0.00019178,2]
[424422030,1780867839000,-835.31,0.00019178,2]
[424422034,1780867839000,-474.93731105,0.00019178,2]
[424422036,1780867839000,-379.225,0.00019178,2]
[424422047,1780867839000,-500.0,0.00019178,2]
[424422049,1780867839000,-1126.51,0.00019178,2]
[424422045,1780867839000,-500.0,0.00019178,2]
[424422026,1780867839000,-519.65825633,0.00019178,2]
[424422039,1780867839000,-683.13768895,0.00019178,2]
[424422064,1780867839000,-1562.24,0.00019178,2]
[424422062,1780867839000,-500.0,0.00019178,2]
[424422051,1780867839000,-500.0,0.00019178,2]
[424422060,1780867839000,-500.0,0.00019178,2]
[424422058,1780867839000,-500.0,0.00019178,2]
[424422074,1780867839000,-1958.5,0.00019178,2]
[424422054,1780867839000,-734.49,0.00019178,2]
[424422043,1780867839000,-644.24,0.00019178,2]
[424422066,1780867839000,-521.07,0.00019178,2]
[424422053,1780867839000,-500.0,0.00019178,2]
[424422041,1780867839000,-500.0,0.00019178,2]
[424422057,1780867839000,-500.0,0.00019178,2]
[424422288,1780867841000,-500.0,0.00019178,2]
[424422286,1780867841000,-292.94491943,0.00019178,2]
[424422290,1780867841000,-500.0,0.00019178,2]
[424422291,1780867841000,-500.0,0.00019178,2]
[424422293,1780867841000,-500.0,0.00019178,2]
[424422296,1780867841000,-311.94450628,0.00019178,2]
[424422300,1780867841000,-504.69,0.00019178,2]
[424422304,1780867841000,-21.80107021,0.00019178,2]
[424422302,1780867841000,-202.74345553,0.00019178,2]
[424422317,1780867841000,-500.0,0.00019178,2]
[424422315,1780867841000,-478.19892979,0.00019178,2]
[424422319,1780867841000,-601.15,0.00019178,2]
[424422323,1780867841000,-678.28555137,0.00019178,2]
[424422321,1780867841000,-500.0,0.00019178,2]
[424422298,1780867841000,-188.05549372,0.00019178,2]
[424422447,1780867843000,-1028.79,0.00019178,2]
[424422446,1780867843000,-1268.47444863,0.00019178,2]
[424422448,1780867843000,-500.0,0.00019178,2]
[424422455,1780867843000,-500.0,0.00019178,2]
[424422458,1780867843000,-668.77,0.00019178,2]
[424422449,1780867843000,-794.31,0.00019178,2]
[424422450,1780867843000,-1434.2,0.00019178,2]
[424422453,1780867843000,-832.31,0.00019178,2]
[424422451,1780867843000,-626.28,0.00019178,2]
[424422459,1780867843000,-656.52,0.00019178,2]
[424422456,1780867843000,-500.0,0.00019178,2]
[424422466,1780867843000,-273.9175925,0.00019178,2]
[424422463,1780867843000,-500.0,0.00019178,2]
[424422462,1780867843000,-2070.56,0.00019178,2]
[424422460,1780867843000,-1449.07,0.00019178,2]
[424422457,1780867843000,-649.74,0.00019178,2]
[424422464,1780867843000,-500.0,0.00019178,2]
[424422461,1780867843000,-972.58,0.00019178,2]
[424422452,1780867843000,-506.88,0.00019178,2]
[424422454,1780867843000,-500.0,0.00019178,2]
[424422465,1780867843000,-500.0,0.00019178,2]
[424422475,1780867846000,-500.0,0.00019178,2]
[424422474,1780867846000,-1953.33,0.00019178,2]
[424422473,1780867846000,-226.0824075,0.00019178,2]
[424422477,1780867846000,-57.24390858,0.00019178,2]
[424422476,1780867846000,-946.62,0.00019178,2]
[424422480,1780867846000,-500.0,0.00019178,2]
[424422482,1780867846000,-3244.66,0.00019178,2]
[424422479,1780867846000,-500.0,0.00019178,2]
[424422481,1780867846000,-923.03,0.00019178,2]
[424422483,1780867846000,-1031.86,0.00019178,2]
[424422478,1780867846000,-442.75609142,0.00019178,2]
[424422486,1780867847000,-1226.99056873,0.00019178,2]
[424422484,1780867847000,-561.1,0.00019178,2]
[424422485,1780867847000,-566.7,0.00019178,2]
[424422505,1780868735000,-557.15210487,0.00013631,2]
[424422506,1780868735000,-448.017939,0.00013631,2]
[424422503,1780868735000,-500.0,0.00013631,2]
[424422501,1780868735000,-473.20452025,0.00013495,2]
[424422504,1780868735000,-500.0,0.00013631,2]
[424422502,1780868735000,-372.3503575,0.00013631,2]
[424422508,1780868828000,-1245.52561459,0.00013495,2]
[424422509,1780868828000,-1872.49829792,0.00013495,2]
[424422510,1780868850000,-1863.68454187,0.00013495,2]
[424422539,1780869031000,-91.97307175,0.00013912,14]
[424422538,1780869031000,-5000.0,0.0001336,2]
[424422622,1780869038000,-864.0,0.00017507,2]
[424422623,1780869038000,-574.6961677,0.00017591,2]
[424422619,1780869038000,-182.88,0.000175,2]
[424422629,1780869038000,-362.24433303,0.00017803,2]
[424422621,1780869038000,-198.14920218,0.00017502,2]
[424422620,1780869038000,-416.66666667,0.000175,2]
[424422618,1780869038000,-649.021778,0.00017422,2]
[424422612,1780869038000,-171.04509119,0.00015746,2]
[424422617,1780869038000,-180.09369837,0.00017269,2]
[424422640,1780869038000,-167.98,0.00018293,2]
[424422616,1780869038000,-500.0,0.00016921,2]
[424422624,1780869038000,-416.66666667,0.000177,2]
[424422628,1780869038000,-633.89669545,0.00017803,2]
[424422627,1780869038000,-406.09998507,0.00017803,2]
[424422614,1780869038000,-289.9027931,0.00015989,2]
[424422625,1780869038000,-416.66666667,0.000178,2]
[424422630,1780869038000,-643.98992538,0.00017803,2]
[424422631,1780869038000,-1005.22802415,0.00017803,2]
[424422632,1780869038000,-238.19348697,0.00018,2]
[424422635,1780869038000,-152.0,0.0001817,7]
[424422634,1780869038000,-649.021778,0.00018155,2]
[424422642,1780869038000,-167.98,0.00018293,2]
[424422633,1780869038000,-416.66666667,0.00018,2]
[424422636,1780869038000,-825.0,0.00018172,2]
[424422641,1780869038000,-167.98,0.00018293,2]
[424422637,1780869038000,-416.66666667,0.000182,2]
[424422626,1780869038000,-355.33748694,0.00017803,2]
[424422610,1780869038000,-500.0,0.000154,2]
[424422605,1780869038000,-500.0,0.00014468,2]
[424422615,1780869038000,-10000.0,0.00016592,2]
[424422638,1780869038000,-167.98,0.00018293,2]
[424422584,1780869038000,-208.05536644,0.00013359,2]
[424422585,1780869038000,-291.94463356,0.00013359,2]
[424422588,1780869038000,-152.43572672,0.00013912,14]
[424422587,1780869038000,-436.11874779,0.00013359,2]
[424422590,1780869038000,-300.0,0.00014186,2]
[424422592,1780869038000,-300.0,0.00014186,2]
[424422591,1780869038000,-300.0,0.00014186,2]
[424422586,1780869038000,-500.0,0.00013359,2]
[424422589,1780869038000,-249.3924,0.00014051,2]
[424422593,1780869038000,-300.0,0.00014186,2]
[424422595,1780869038000,-300.0,0.00014186,2]
[424422611,1780869038000,-500.0,0.000154,2]
[424422594,1780869038000,-300.0,0.00014186,2]
[424422599,1780869038000,-300.0,0.00014186,2]
[424422601,1780869038000,-300.0,0.00014186,2]
[424422602,1780869038000,-300.0,0.00014186,2]
[424422597,1780869038000,-300.0,0.00014186,2]
[424422598,1780869038000,-300.0,0.00014186,2]
[424422600,1780869038000,-300.0,0.00014186,2]
[424422604,1780869038000,-300.0,0.00014186,2]
[424422603,1780869038000,-300.0,0.00014186,2]
[424422606,1780869038000,-594.70210564,0.00014468,2]
[424422608,1780869038000,-600.0,0.00014469,2]
[424422607,1780869038000,-500.0,0.00014468,2]
[424422613,1780869038000,-720.0,0.00015916,2]
[424422596,1780869038000,-300.0,0.00014186,2]
[424422639,1780869038000,-167.98,0.00018293,2]
[424422609,1780869038000,-500.0,0.000154,2]
[424422645,1780869038000,-500.0,0.00018392,2]
[424422674,1780869038000,-500.0,0.0001863,2]
[424422677,1780869038000,-500.0,0.0001863,2]
[424422678,1780869038000,-500.0,0.0001863,2]
[424422680,1780869038000,-341.32993513,0.0001863,2]
[424422676,1780869038000,-500.0,0.0001863,2]
[424422681,1780869038000,-151.5,0.0001863,2]
[424422682,1780869038000,-175.4911037,0.0001863,2]
[424422683,1780869038000,-500.0,0.0001863,2]
[424422695,1780869038000,-5931.78610856,0.00018741,2]
[424422686,1780869038000,-500.0,0.0001863,2]
[424422684,1780869038000,-500.0,0.0001863,2]
[424422685,1780869038000,-162.10871609,0.0001863,2]
[424422692,1780869038000,-500.0,0.0001863,2]
[424422691,1780869038000,-500.0,0.0001863,2]
[424422693,1780869038000,-572.7054161,0.0001863,2]
[424422694,1780869038000,-186.55765462,0.000187,2]
[424422687,1780869038000,-500.0,0.0001863,2]
[424422689,1780869038000,-500.0,0.0001863,2]
[424422690,1780869038000,-500.0,0.0001863,2]
[424422696,1780869038000,-4091.61984165,0.00018799,2]
[424422697,1780869038000,-200.0,0.00018799,2]
[424422700,1780869038000,-151.0,0.000188,2]
[424422699,1780869038000,-151.0,0.000188,2]
[424422701,1780869038000,-649.021778,0.00018889,2]
[424422702,1780869038000,-500.0,0.00018898,2]
[424422698,1780869038000,-200.90591756,0.00018799,2]
[424422643,1780869038000,-151.0,0.00018392,2]
[424422670,1780869038000,-500.0,0.0001863,2]
[424422675,1780869038000,-500.0,0.0001863,2]